bitfinex/quotes_ETHUSD_20220218
["timestamp","ask_amount","ask_price","bid_price","bid_amount"]
[1645150118517,1.65216,2918.6,2918.5,0.48228081]
[1645150118721,1.35216,2918.6,2918.5,0.48228081]
[1645150118918,0.85688,2918.7,2918.5,0.48228081]
[1645150119918,0.51493035,2919.0,2918.5,0.48228081]
[1645150120519,0.51493035,2919.0,2918.5,0.48563967]
[1645150120922,0.81493035,2919.0,2918.5,0.48563967]
[1645150121172,0.51493035,2919.0,2918.5,0.48563967]
[1645150121375,0.51493035,2919.0,2918.5,0.48228081]
[1645150121572,0.51493035,2919.0,2918.6,0.00335875]
[1645150121773,1.37172035,2919.0,2918.6,0.00335875]
[1645150121972,0.51493035,2919.0,2918.6,0.00335875]
[1645150122171,0.81493035,2919.0,2918.6,0.86007875]
[1645150122371,0.51493035,2919.0,2918.6,0.86007875]
[1645150122578,0.51493035,2919.0,2918.6,0.85672]
[1645150122775,0.51493035,2919.0,2918.7,0.00335872]
[1645150122975,1.37172035,2919.0,2918.7,0.00335872]
[1645150123176,1.67172035,2919.0,2918.7,0.00335872]
[1645150123679,1.67172035,2919.0,2918.5,0.48228081]
[1645150123886,1.67172035,2919.0,2918.7,0.00335868]
[1645150124077,0.85687,2918.9,2918.7,0.00335868]
[1645150124914,0.85687,2918.9,2918.5,0.48228081]
[1645150125313,1.15687,2918.9,2918.7,0.00335872]
[1645150125915,2.12067297,2918.9,2918.7,0.00335872]
[1645150126117,0.85692,2918.7,2918.5,0.48228081]
[1645150127622,2.12061297,2918.9,2918.5,0.48563701]
[1645150127819,1.15681,2918.9,2918.5,0.48563701]
[1645150128422,1.15681,2918.9,2918.5,0.48228081]
[1645150128667,0.3,2918.9,2918.6,0.00335613]
[1645150129069,1.11493035,2919.0,2918.6,0.00335613]
[1645150129667,0.81493035,2919.0,2918.5,0.48228081]
[1645150130066,0.51493035,2919.0,2918.7,0.00335606]
[1645150130266,0.85681,2918.9,2918.7,0.00335606]
[1645150130667,1.15681,2918.9,2918.7,0.00335606]
[1645150130867,1.15681,2918.9,2918.5,0.48228081]
[1645150131067,0.3,2918.9,2918.7,0.00335606]
[1645150131271,0.51493035,2919.0,2918.7,0.00335606]
[1645150132170,0.51493035,2919.0,2918.6,1.46073042]
[1645150132416,0.3,2919.1,2918.7,0.00335602]
[1645150132615,1.71345,2919.6,2918.7,1.46408644]
[1645150132819,1.71345,2919.6,2918.8,3.5]
[1645150133015,1.71345,2919.6,2918.9,1.46073042]
[1645150133218,1.71345,2919.6,2919.0,0.97570215]
[1645150133617,1.71345,2919.6,2919.1,0.00335577]
[1645150133818,0.85665,2919.4,2919.1,0.00335577]
[1645150134018,0.3,2919.3,2919.1,0.00335577]
[1645150134618,0.3,2919.5,2918.9,1.46060866]
[1645150134819,2.57019,2919.6,2919.1,0.00335577]
[1645150135025,2.44307189,2920.3,2919.2,0.1711]
[1645150135026,1.71303,2920.2,2919.2,0.1711]
[1645150135219,2.59373323,2920.7,2919.3,1.46060866]
[1645150135220,0.01341545,2920.7,2919.3,1.46060866]
[1645150135418,0.01341545,2920.7,2919.4,0.1711]
[1645150135618,0.01341545,2920.7,2919.5,3.33940866]
[1645150135817,2.05802778,2921.1,2919.8,1.11499708]
[1645150135818,1.09489254,2920.5,2919.8,1.11499708]
[1645150136066,0.85647,2920.4,2919.6,5.60107866]
[1645150136273,0.85647,2920.4,2919.7,1.46060866]
[1645150136673,0.85647,2920.4,2919.3,1.1717]
[1645150136674,0.3,2920.3,2919.3,1.1717]
[1645150136876,0.6,2920.3,2919.3,1.1717]
[1645150137077,1.12902541,2919.9,2919.3,1.1717]
[1645150137277,1.42902541,2919.9,2919.2,0.00335603]
[1645150137475,1.72902541,2919.9,2919.2,0.00335603]
[1645150137674,1.42902541,2919.9,2919.2,1.46382337]
[1645150138075,0.85656,2919.8,2919.0,1.8239]
[1645150138275,0.85656,2919.8,2919.1,1.46052314]
[1645150138485,0.85656,2919.8,2919.2,0.00335581]
[1645150139278,0.85667,2919.7,2919.1,2.31714314]
[1645150139477,0.3,2919.5,2919.1,0.85662]
[1645150139681,0.3,2919.5,2919.2,0.00335579]
[1645150139920,1.42902541,2919.9,2919.6,0.39437656]
[1645150140123,0.3,2919.7,2919.6,0.39437656]
[1645150140320,1.42902541,2919.9,2919.6,0.39437656]
[1645150140522,0.85658,2919.8,2919.6,0.39437656]
[1645150140723,0.3,2919.7,2919.6,0.39437656]
[1645150141326,2.15672,2919.7,2919.6,0.39437656]
[1645150141526,2.15672,2919.7,2919.2,0.00335586]
[1645150141728,4.36571,2919.7,2919.2,0.00335586]
[1645150141925,4.36571,2919.7,2918.6,1.46074228]
[1645150142125,0.3,2919.5,2919.2,0.00335586]
[1645150142328,0.495,2919.4,2919.2,0.00335586]
[1645150142525,0.495,2919.4,2918.6,1.46074228]
[1645150142526,0.95246563,2918.8,2918.6,1.46074228]
[1645150143025,0.3,2918.7,2918.5,0.48228081]
[1645150143864,2.01399,2918.7,2918.5,0.48228081]
[1645150144067,2.31399,2918.7,2918.5,0.48228081]
[1645150146772,2.31399,2918.7,2918.5,0.98563701]
[1645150146972,2.31399,2918.7,2918.5,0.48563701]
[1645150147813,2.31399,2918.7,2918.5,0.48228081]
[1645150148013,2.31399,2918.7,2918.5,0.48563701]
[1645150148816,2.01399,2918.7,2918.5,0.48563701]
[1645150149018,2.01399,2918.7,2918.5,0.48228081]
[1645150149217,2.31399,2918.7,2918.5,0.48563701]
[1645150150215,2.31399,2918.7,2918.5,0.48228081]
[1645150150416,2.31399,2918.7,2918.5,0.48563701]
[1645150150819,2.01399,2918.7,2918.5,0.48563701]
[1645150151271,1.71399,2918.7,2918.5,0.48228081]
[1645150151476,0.03864414,2919.0,2918.5,0.48228081]
[1645150151477,0.03864414,2919.0,2918.6,1.46084846]
[1645150152368,0.89555414,2919.0,2918.6,1.46084846]
[1645150152573,0.89548414,2919.0,2918.6,1.46084846]
[1645150152769,0.89548414,2919.0,2918.7,0.00335606]
[1645150152969,1.49548414,2919.0,2918.7,0.00335606]
[1645150153369,2.35240414,2919.0,2918.7,0.00335606]
[1645150153570,0.85702,2918.9,2918.7,0.00335606]
[1645150153770,0.85702,2918.9,2918.5,0.48228081]
[1645150154169,0.3,2918.8,2918.7,0.00335602]
[1645150155017,0.85716,2918.7,2918.5,0.40344815]
[1645150155222,0.85716,2918.7,2918.6,0.0033561]
[1645150155223,2.87134,2918.7,2918.6,0.0033561]
[1645150156227,2.87134,2918.7,2918.5,0.40344815]
[1645150156228,1.02867924,2918.6,2918.5,0.40344815]
[1645150156427,1.02867924,2918.6,2918.5,0.40680432]
[1645150157424,1.02867924,2918.6,2918.5,0.40344815]
[1645150159566,1.02867924,2918.6,2918.5,0.28077169]
[1645150159769,2.02867924,2918.6,2918.5,0.28077169]
[1645150159969,2.52367924,2918.6,2918.5,0.28077169]
[1645150160369,6.0,2918.5,2918.4,0.00335624]
[1645150160568,6.795,2918.5,2918.4,0.00335624]
[1645150160768,12.795,2918.5,2918.4,0.00335624]
[1645150160967,12.795,2918.5,2918.1,1.55852551]
[1645150161172,1.71459,2918.3,2918.1,1.55852551]
[1645150161373,2.20959,2918.3,2918.1,1.55852551]
[1645150161571,2.50959,2918.3,2918.1,1.55852551]
[1645150161774,1.0,2918.2,2918.1,1.55852551]
[1645150162411,1.0,2918.2,2918.1,1.42040399]
[1645150162614,1.0,2918.2,2918.1,0.86265319]
[1645150162814,1.84867653,2918.2,2918.1,0.86265319]
[1645150163414,2.34367653,2918.2,2918.1,0.86265319]
[1645150166567,2.34367653,2918.2,2918.0,0.00313401]
[1645150166778,1.37634701,2918.1,2918.0,0.00313401]
[1645150166971,1.87134701,2918.1,2917.6,0.00443808]
[1645150167172,2.72857701,2918.1,2917.6,0.00443808]
[1645150167371,1.87134701,2918.1,2918.0,0.00313404]
[1645150168278,4.44318701,2918.1,2917.2,0.00443808]
[1645150168475,3.58591701,2918.1,2917.9,0.00313407]
[1645150169273,0.8573,2918.0,2917.1,1.46141164]
[1645150169475,0.85746,2917.7,2917.2,0.00443808]
[1645150169675,2.5724,2917.8,2917.7,0.70140166]
[1645150169923,1.71492,2917.8,2917.7,0.70583974]
[1645150170819,2.57229,2917.8,2917.7,0.70583974]
[1645150171017,2.57229,2917.8,2917.7,0.40369602]
[1645150171018,3.06729,2917.8,2917.7,0.40369602]
[1645150172018,3.56981762,2917.8,2917.7,0.40369602]
[1645150174867,3.56981762,2917.8,2917.7,0.35891011]
[1645150175069,8.56981762,2917.8,2917.7,0.35891011]
[1645150175669,8.56981762,2917.8,2917.6,0.00313876]
[1645150175868,5.28489762,2917.8,2917.6,0.00313876]
[1645150176073,10.28489762,2917.8,2917.6,0.00313876]
[1645150176477,10.28489762,2917.8,2916.5,0.1713]
[1645150176478,0.85767,2917.5,2916.5,0.1713]
[1645150176676,1.71534,2917.6,2916.6,1.46173256]
[1645150176677,0.85763,2917.2,2916.6,1.46173256]
[1645150176877,0.85763,2917.2,2916.1,3.2902]
[1645150176878,0.495,2917.1,2916.1,3.1189]
[1645150177076,2.21051,2917.1,2916.2,1.46623466]
[1645150177315,2.21051,2917.1,2916.3,1.46623466]
[1645150177520,1.71553,2916.9,2916.4,1.46181201]
[1645150177718,0.85779,2916.8,2916.4,1.46181201]
[1645150177919,0.85779,2916.8,2916.5,1.46184251]
[1645150178118,0.85779,2916.8,2916.0,0.0044231]
[1645150178319,0.85779,2916.8,2916.1,1.4618386]
[1645150178320,0.495,2916.7,2916.1,1.4618386]
[1645150178724,1.7156,2916.6,2916.2,1.4662617]
[1645150178919,1.7156,2916.6,2916.3,0.0044231]
[1645150179219,1.7156,2916.6,2915.6,0.1713]
[1645150179220,1.17826132,2916.5,2915.7,0.0044231]
[1645150179420,1.17826132,2916.5,2915.8,1.63327014]
[1645150179620,1.17826132,2916.5,2915.9,1.46639324]
[1645150179823,1.17826132,2916.5,2916.0,1.63327014]
[1645150180021,0.85778,2916.4,2916.1,1.46639324]
[1645150180320,0.85778,2916.4,2916.2,1.46639324]
[1645150180521,0.85778,2916.4,2916.3,1.46197014]
[1645150180723,0.85778,2916.4,2916.1,0.00335788]
[1645150180920,0.85778,2916.4,2916.1,0.00778098]
[1645150181169,0.85778,2916.4,2916.2,1.46197014]
[1645150181566,0.85778,2916.4,2916.3,1.46197014]
[1645150181766,0.85778,2916.4,2916.3,1.46639324]
[1645150182566,0.85778,2916.4,2916.3,0.0044231]
[1645150182766,1.7154,2916.4,2916.3,1.46181437]
[1645150182968,0.85778,2916.4,2916.3,0.0044231]
[1645150183167,0.85778,2916.4,2916.3,1.46181437]
[1645150183466,0.85778,2916.4,2916.3,1.46623747]
[1645150185116,0.85778,2916.4,2916.3,0.1375152]
[1645150185317,0.85778,2916.4,2916.2,0.00335781]
[1645150185318,1.71599,2916.3,2916.2,0.00335781]
[1645150185516,1.71599,2916.3,2915.6,0.00437928]
[1645150185517,0.85805,2916.0,2915.6,0.00437928]
[1645150185718,0.85805,2916.0,2915.4,0.00437928]
[1645150185719,0.495,2915.9,2915.4,0.00437928]
[1645150185919,1.35303,2915.9,2915.2,0.00437928]
[1645150186518,0.87956884,2915.4,2915.2,0.00437928]
[1645150186722,0.85799,2915.3,2915.2,0.00437928]
[1645150186917,0.85799,2915.3,2915.0,0.00437928]
[1645150187119,0.85797,2915.3,2915.0,0.00437928]
[1645150187719,0.85795,2915.2,2914.8,0.00437928]
[1645150187919,0.495,2916.0,2914.8,0.00437928]
[1645150187920,0.52728986,2915.9,2914.8,0.17587928]
[1645150188118,1.71609,2916.2,2914.8,0.17587928]
[1645150188318,0.85781,2915.3,2914.9,1.2413]
[1645150188565,0.85781,2915.3,2915.0,0.00437928]
[1645150188972,0.85781,2915.3,2915.1,21.45776334]
[1645150188973,0.85788,2915.2,2915.1,21.45776334]
[1645150189172,1.194,2917.3,2915.1,20.45587928]
[1645150189377,1.194,2917.3,2915.8,0.85753]
[1645150189570,0.85753,2916.4,2915.8,0.85753]
[1645150189769,7.23024,2917.2,2916.4,1.55958577]
[1645150189970,1.71507,2916.6,2916.4,1.55958577]
[1645150190170,1.71507,2916.6,2916.4,1.56396475]
[1645150190171,1.02662398,2916.5,2916.4,1.56396475]
[1645150190371,1.02662398,2916.5,2916.4,1.55958577]
[1645150190571,1.62662398,2916.5,2916.4,1.55958577]
[1645150191372,2.48440398,2916.5,2916.4,1.55958577]
[1645150193017,0.6,2916.5,2916.4,1.55958577]
[1645150194018,1.76111101,2916.5,2916.4,1.55958577]
[1645150194218,1.76111101,2916.5,2916.4,1.50958577]
[1645150196768,0.6,2916.5,2916.4,1.50958577]
[1645150197770,1.5891264,2916.5,2916.4,1.50958577]
[1645150198575,1.5891264,2916.5,2916.4,1.01336588]
[1645150199174,5.0891264,2916.5,2916.4,1.01336588]
[1645150199374,5.5841264,2916.5,2916.4,1.01336588]
[1645150199574,2.0841264,2916.5,2916.4,1.01336588]
[1645150205974,3.7996764,2916.5,2916.4,1.01336588]
[1645150206676,2.81055,2916.5,2916.4,1.01336588]
[1645150209121,2.31555,2916.5,2916.4,1.01336588]
[1645150209520,3.31555,2916.5,2916.4,1.01336588]
[1645150209722,2.57267,2916.6,2916.4,1.01336588]
[1645150209925,1.71507,2916.6,2916.5,1.55948226]
[1645150211171,2.31507,2916.6,2916.5,1.55948226]
[1645150212371,3.31507,2916.6,2916.5,1.55948226]
[1645150213172,5.03041,2916.6,2916.5,1.55948226]
[1645150213774,4.03041,2916.6,2916.5,1.55948226]
[1645150214172,4.10351304,2916.6,2916.5,1.55948226]
[1645150214375,4.03041,2916.6,2916.5,1.55948226]
[1645150214574,4.10351067,2916.6,2916.5,1.55948226]
[1645150215217,5.10351067,2916.6,2916.5,1.12246238]
[1645150215422,6.0,2916.5,2916.4,1.01774486]
[1645150215616,9.58390067,2916.5,2916.4,1.01336588]
[1645150215816,5.71594,2916.4,2916.1,0.00335556]
[1645150216018,2.56984607,2916.3,2916.1,0.00335556]
[1645150216224,2.56984607,2916.3,2915.7,0.00437898]
[1645150216225,0.37310067,2916.2,2915.7,0.00437898]
[1645150216423,0.37310067,2916.2,2915.3,0.00437898]
[1645150216424,0.56810067,2916.1,2915.3,0.00437898]
[1645150216624,0.07310067,2916.0,2915.3,0.00437898]
[1645150216824,0.85809,2915.8,2915.3,0.00437898]
[1645150217027,6.56810067,2915.7,2915.2,1.31312763]
[1645150217224,4.0,2915.5,2915.2,0.80348637]
[1645150217424,6.0,2915.3,2914.6,0.01342849]
[1645150217624,4.06810067,2915.2,2914.4,0.00431556]
[1645150217823,2.57484,2915.1,2914.6,0.01342709]
[1645150218027,1.35326,2915.0,2914.6,0.01774265]
[1645150218223,2.81156,2915.0,2914.6,0.01342709]
[1645150218666,2.81156,2915.0,2914.4,0.00431556]
[1645150218667,1.0,2914.9,2914.4,0.00431556]
[1645150218863,1.0,2914.9,2914.5,1.35500192]
[1645150219069,1.0,2914.9,2914.7,0.00325569]
[1645150219271,3.57475,2914.9,2914.7,0.00325569]
[1645150219474,0.86814862,2914.8,2914.7,0.00325569]
[1645150219675,0.86814862,2914.8,2914.7,5.569e-05]
[1645150219676,6.24990968,2914.8,2914.7,5.569e-05]
[1645150219875,6.24990968,2914.8,2913.5,1.84051556]
[1645150219876,1.71719,2914.5,2913.5,1.84051556]
[1645150220078,2.28539862,2914.4,2913.6,1.35583437]
[1645150220273,1.71706,2913.8,2913.6,1.36014993]
[1645150220581,0.85852,2913.8,2913.7,1.36014993]
[1645150220776,0.3,2913.9,2913.7,1.36014993]
[1645150220972,1.0,2914.6,2913.7,1.36014993]
[1645150221179,1.71643,2914.7,2913.8,1.36014993]
[1645150221374,2.01643,2914.7,2913.9,2.38066786]
[1645150221573,0.3,2914.6,2914.0,0.00431556]
[1645150221774,1.71646,2914.3,2914.0,0.00431556]
[1645150221974,1.71646,2914.3,2913.7,0.00431556]
[1645150221975,2.01692,2914.2,2913.7,0.00431556]
[1645150222176,2.31692,2914.2,2913.5,0.00431556]
[1645150222620,3.31692,2914.2,2913.8,0.00334412]
[1645150222819,2.88423308,2914.1,2913.8,0.00334412]
[1645150223021,3.74270308,2914.1,2913.8,0.00334412]
[1645150223226,2.71698,2914.0,2913.8,0.00334412]
[1645150223617,2.71698,2914.0,2913.3,0.00431556]
[1645150223618,3.01698,2914.0,2913.3,0.00431556]
[1645150223817,6.45116,2914.0,2913.3,0.00431556]
[1645150224021,0.3,2913.9,2913.8,0.00334416]
[1645150224723,0.3,2913.9,2913.1,0.00431556]
[1645150224922,0.85855,2913.7,2913.1,0.00431556]
[1645150225122,0.85855,2913.7,2912.8,1.0295929]
[1645150225123,2.05274922,2913.6,2912.8,1.0295929]
[1645150225320,0.3,2913.5,2912.8,0.13929434]
[1645150225825,1.49419922,2913.6,2912.7,0.1716]
[1645150225826,1.79419922,2913.6,2912.7,0.1716]
[1645150226066,1.79419922,2913.6,2912.7,0.1216]
[1645150226271,1.71716,2913.5,2912.7,0.1216]
[1645150226468,1.15859,2913.5,2912.7,0.1216]
[1645150226670,0.85855,2913.4,2912.7,0.1216]
[1645150226870,1.15855,2913.4,2912.7,0.1216]
[1645150227070,0.3,2913.4,2912.6,0.30979997]
[1645150227270,3.51141922,2913.6,2912.6,7.69482396]
[1645150227471,0.85865,2913.2,2912.9,0.00334475]
[1645150227669,1.15865,2913.2,2912.9,0.00334475]
[1645150227873,1.05529863,2913.0,2912.9,0.00334475]
[1645150228270,1.35529863,2913.0,2912.9,0.00334475]
[1645150228476,2.01746,2912.9,2912.6,7.55662399]
[1645150228671,2.01746,2912.9,2912.8,0.00334482]
[1645150228672,1.15873,2912.9,2912.8,0.00334482]
[1645150229673,1.15873,2912.9,2912.6,7.55662399]
[1645150229919,2.47397375,2913.1,2912.6,7.55662399]
[1645150230222,0.5231112,2913.4,2912.7,1.04285246]
[1645150230419,0.85853,2913.3,2912.7,1.21445246]
[1645150230617,0.85853,2913.3,2912.7,1.04285246]
[1645150231423,1.71709,2913.3,2912.7,1.04285246]
[1645150232222,0.3,2913.2,2912.9,0.00334278]
[1645150232423,1.15858,2913.2,2912.9,0.00334278]
[1645150232624,2.01717,2913.2,2912.9,0.00334278]
[1645150233125,2.01717,2913.2,2912.6,7.55662399]
[1645150233579,2.01717,2913.2,2912.9,0.00334274]
[1645150233880,0.3,2913.1,2912.9,0.00334274]
[1645150234478,0.85863,2913.0,2912.6,7.55662399]
[1645150234677,0.85863,2913.0,2912.9,0.00334278]
[1645150234878,0.85863,2913.0,2912.6,7.45996677]
[1645150235080,2.3,2912.9,2911.9,0.1716]
[1645150235282,2.3,2912.9,2911.7,5.84451672]
[1645150235484,2.3,2912.9,2911.8,0.1716]
[1645150235688,0.85881,2912.7,2911.4,7.3]
[1645150235883,0.95626983,2912.0,2911.4,7.3]
[1645150236385,3.27435983,2912.0,2911.4,7.3]
[1645150236781,3.57715,2911.9,2911.4,7.3]
[1645150237180,3.57715,2911.9,2911.6,0.00202806]
[1645150237423,1.08543388,2911.8,2911.6,0.00202806]
[1645150237723,3.40351388,2911.8,2911.6,0.00202806]
[1645150238123,3.40351388,2911.8,2911.1,0.02792726]
[1645150238325,1.1716,2911.7,2911.6,0.00333106]
[1645150239022,1.88981,2911.7,2911.6,0.00333106]
[1645150239225,2.18981,2911.7,2911.0,0.0040444]
[1645150239424,0.85906,2911.6,2911.0,0.0040444]
[1645150239623,0.85899,2911.5,2911.0,0.0040444]
[1645150241068,1.71802,2911.5,2911.0,0.0040444]
[1645150241278,1.15903,2911.4,2911.0,0.0040444]
[1645150241977,1.15903,2911.4,2911.1,0.00332852]
[1645150242676,2.01809,2911.4,2911.1,0.00332852]
[1645150242874,2.01809,2911.4,2911.0,0.0040444]
[1645150243076,1.71809,2911.4,2911.0,0.0040444]
[1645150243275,0.85908,2911.3,2911.1,0.00332849]
[1645150243880,1.81436204,2911.3,2911.1,0.00332849]
[1645150244077,1.81436204,2911.3,2911.0,0.0040444]
[1645150244276,0.85917,2911.2,2911.0,0.0040444]
[1645150244477,0.85917,2911.2,2911.1,0.00332852]
[1645150244677,2.01837,2911.2,2911.1,0.00332852]
[1645150245317,2.01837,2911.2,2911.0,0.0040444]
[1645150245518,2.01837,2911.2,2911.0,0.00737296]
[1645150246526,2.01837,2911.2,2911.0,0.0040444]
[1645150246722,2.01837,2911.2,2911.0,0.00737299]
[1645150247025,2.15917,2911.2,2911.0,0.00737299]
[1645150247422,0.1716,2911.1,2911.0,0.00737299]
[1645150247623,0.1716,2911.1,2911.0,0.0040444]
[1645150247822,0.1716,2911.1,2911.0,0.04440247]
[1645150248021,0.1716,2911.1,2911.0,0.04773106]
[1645150248868,0.1716,2911.1,2911.0,0.04440247]
[1645150249272,29.7179,2911.0,2910.9,0.00332862]
[1645150249474,29.7179,2911.0,2910.5,0.0133165]
[1645150249476,21.13961,2910.8,2910.5,0.0133165]
[1645150249671,23.63722229,2910.8,2910.5,0.0294941]
[1645150249872,1.1716,2910.7,2910.5,0.0161776]
[1645150250070,1.1716,2910.7,2909.6,0.00425627]
[1645150250071,20.28,2910.5,2909.6,0.00425627]
[1645150250270,20.28,2910.5,2909.4,6.55425627]
[1645150250271,6.0,2910.2,2909.4,6.55425627]
[1645150250472,7.89118,2910.2,2909.5,0.00423704]
[1645150250671,7.89118,2910.2,2909.2,0.00610652]
[1645150250672,0.8597,2910.0,2909.2,0.00610652]
[1645150250874,0.96712373,2909.6,2909.2,0.00610652]
[1645150251277,2.98675373,2909.6,2909.2,0.00610652]
[1645150251477,2.98675373,2909.6,2909.2,0.00186948]
[1645150251681,2.0317,2909.5,2909.2,0.00186948]
[1645150251878,1.71968,2909.5,2909.2,0.00186948]
[1645150252080,0.3,2909.5,2909.2,0.00186948]
[1645150252525,1.51211589,2910.5,2909.2,0.00186948]
[1645150252526,1.89096,2910.4,2909.2,0.00186948]
[1645150252727,0.85962,2909.6,2909.2,0.00186948]
[1645150252929,0.3,2909.5,2909.2,0.00186948]
[1645150253327,1.47166482,2909.6,2909.2,0.00186948]
[1645150253927,1.47166482,2909.6,2909.3,0.00332976]
[1645150254332,1.71934,2909.5,2909.3,0.00332976]
[1645150254527,2.01934,2909.5,2909.3,0.00332976]
[1645150254927,2.01934,2909.5,2909.2,0.00186948]
[1645150255230,2.01934,2909.5,2909.3,0.00332976]
[1645150255429,3.01934,2909.5,2909.3,0.00332976]
[1645150255629,2.01934,2909.5,2909.3,0.00332976]
[1645150255830,1.0,2909.4,2909.3,0.00332976]
[1645150256081,0.85982,2909.4,2909.2,0.00186948]
[1645150256282,0.85982,2909.4,2909.2,6.948e-05]
[1645150256283,24.52615,2909.4,2909.2,6.948e-05]
[1645150256486,24.52615,2909.4,2909.3,0.00312787]
[1645150256681,24.52615,2909.4,2909.2,6.948e-05]
[1645150256682,26.28,2909.3,2909.2,6.948e-05]
[1645150256886,27.58,2909.3,2909.2,6.948e-05]
[1645150257281,28.44001,2909.3,2909.2,6.948e-05]
[1645150257487,28.93501,2909.3,2909.2,6.948e-05]
[1645150257883,20.28,2909.1,2908.2,0.008507]
[1645150258186,20.28,2908.9,2908.2,0.01224596]
[1645150258382,1.16716861,2908.6,2908.2,0.01224596]
[1645150258583,1.33906861,2908.6,2908.2,0.01224596]
[1645150258783,1.33906861,2908.6,2908.5,0.00199978]
[1645150258784,1.46716861,2908.6,2908.5,0.00199978]
[1645150258982,23.46734861,2908.6,2908.5,0.00199978]
[1645150259386,24.46734861,2908.6,2908.5,0.00199978]
[1645150259601,25.32748861,2908.6,2908.5,0.00199978]
[1645150259838,0.86019,2908.5,2908.2,0.01224596]
[1645150260038,0.86019,2908.5,2908.4,0.00199985]
[1645150260039,1.86019,2908.5,2908.4,0.00199985]
[1645150260236,23.86058,2908.5,2908.4,0.00199985]
[1645150260637,25.21574,2908.5,2908.4,0.00573881]
[1645150260844,6.0,2908.4,2908.2,7e-06]
[1645150261042,6.0,2908.4,2908.2,0.00748492]
[1645150261043,20.775,2908.3,2908.2,0.00748492]
[1645150261240,22.075,2908.3,2908.2,0.00748492]
[1645150261440,22.075,2908.3,2907.9,0.01332365]
[1645150261441,26.28,2908.2,2907.9,0.01332365]
[1645150261643,21.64525369,2908.1,2907.1,0.00423704]
[1645150261847,21.64525369,2908.1,2906.7,3.5]
[1645150261848,22.00125,2907.7,2906.7,0.00423704]
[1645150262052,22.00125,2907.7,2906.8,3.704e-05]
[1645150262053,5.0,2907.5,2906.8,3.704e-05]
[1645150262243,20.9469,2907.4,2906.0,0.5]
[1645150262449,20.9469,2907.4,2906.1,0.00417714]
[1645150262450,20.28,2907.3,2906.1,0.00417714]
[1645150262643,20.28,2907.3,2905.8,1.15619938]
[1645150262644,0.8538384,2906.6,2905.8,1.15619938]
[1645150262844,1.0,2906.9,2905.8,1.15619938]
[1645150263048,1.0,2906.9,2905.9,1.02710469]
[1645150263243,0.3,2906.9,2906.0,0.97292755]
[1645150263444,0.3,2906.9,2906.1,0.00417714]
[1645150263676,0.3,2906.9,2905.8,0.0144409]
[1645150263677,1.3,2907.2,2906.2,0.00197531]
[1645150263875,1.1291,2907.8,2906.2,0.00197531]
[1645150264278,1.1291,2907.8,2906.5,0.9871069]
[1645150264279,0.94606934,2907.4,2906.5,0.9871069]
[1645150264476,0.94606934,2907.4,2906.6,0.00417714]
[1645150264683,1.72091,2907.3,2906.2,0.00417714]
[1645150264876,1.72091,2907.3,2906.9,0.0033086]
[1645150264877,0.86044,2907.3,2906.9,0.0033086]
[1645150265278,0.6,2907.2,2906.9,0.0033086]
[1645150265677,0.6,2907.2,2906.2,0.00417714]
[1645150265678,0.86045,2907.0,2906.2,0.00417714]
[1645150265880,0.86051,2906.9,2906.2,0.00417714]
[1645150266076,0.86051,2906.9,2906.5,0.01323624]
[1645150266282,2.32099,2907.2,2906.5,0.01323624]
[1645150266484,0.6,2907.2,2906.5,0.01323624]
[1645150266683,0.3,2907.2,2906.5,0.01323624]
[1645150266885,0.1719,2907.9,2906.3,0.00417714]
[1645150266886,0.0008,2906.9,2906.4,5.0]
[1645150267082,0.1719,2907.9,2907.1,0.00017014]
[1645150267083,0.3,2907.9,2907.1,0.00017014]
[1645150267331,0.3,2907.9,2907.3,1.0122293]
[1645150267522,0.00330717,2908.0,2907.4,0.00417714]
[1645150267723,1.00330717,2908.0,2907.4,0.00417714]
[1645150268122,2.35737837,2908.1,2907.4,3.50417714]
[1645150268123,1.83983271,2908.1,2907.4,3.50417714]
[1645150268325,0.8694,2908.1,2907.4,4.36414714]
[1645150268525,0.8694,2908.1,2907.6,0.00330812]
[1645150268526,0.00330757,2908.0,2907.6,0.00330812]
[1645150268922,0.00330757,2908.0,2907.6,0.00748526]
[1645150269321,0.8694,2908.1,2907.6,0.00417714]
[1645150269723,0.00310148,2908.0,2907.8,1.15012328]
[1645150270026,0.1719,2909.2,2907.8,1.15430042]
[1645150270222,0.85986,2909.1,2907.8,1.15430042]
[1645150270423,1.03177,2909.0,2907.9,3.5]
[1645150270624,1.03177,2909.0,2908.0,0.00417714]
[1645150270822,0.85986,2909.1,2908.0,0.49917714]
[1645150271088,0.90089181,2909.7,2908.8,1.09382835]
[1645150271286,0.1718,2909.6,2908.9,3.50417714]
[1645150271486,0.1718,2909.8,2908.9,3.50417714]
[1645150271684,0.85961,2909.9,2908.9,3.50417714]
[1645150272385,0.85961,2909.9,2908.9,0.00417714]
[1645150272588,0.1718,2909.8,2908.5,3.50417714]
[1645150272783,0.1718,2909.8,2908.1,0.1718]
[1645150272784,0.8597,2909.6,2908.6,0.00417714]
[1645150272984,0.8597,2909.6,2908.3,3.50417714]
[1645150273184,0.30330726,2909.5,2908.3,3.50417714]
[1645150273387,1.71977,2909.4,2908.3,4.6029915]
[1645150273785,0.85989,2909.2,2908.3,1.1029915]
[1645150273988,0.85989,2909.2,2908.3,0.00417714]
[1645150274188,0.85989,2909.2,2908.1,3.50417714]
[1645150274487,0.00330763,2909.0,2908.2,0.00417714]
[1645150274922,0.30330763,2909.0,2908.2,0.00417714]
[1645150275126,1.2492527,2909.0,2908.2,0.00417714]
[1645150275324,3.10581507,2909.0,2908.2,0.00417714]
[1645150275523,0.0033078,2908.7,2908.2,0.00417714]
[1645150275731,0.8632378,2908.7,2908.1,0.9915325]
[1645150275924,0.8632378,2908.7,2908.2,0.00413307]
[1645150276629,0.85993,2908.7,2908.2,0.00413307]
[1645150276828,0.00330791,2908.6,2908.2,0.00413307]
[1645150277032,0.30330791,2908.6,2908.2,0.00413307]
[1645150277229,0.30330791,2908.6,2907.8,0.00330883]
[1645150277230,0.86001,2908.5,2907.8,0.0074419]
[1645150277428,0.86001,2908.5,2907.8,0.00330883]
[1645150277828,0.86001,2908.5,2907.6,0.06371307]
[1645150278029,0.00330811,2908.3,2907.9,1.14698113]
[1645150278231,0.00330811,2908.3,2908.0,0.00413307]
[1645150278875,0.86001,2908.5,2908.0,0.00413307]
[1645150279075,0.00330811,2908.3,2908.0,0.00413307]